bitfinex-derivatives/quotes_BTCF0:USTF0_20251110
["timestamp","ask_amount","ask_price","bid_price","bid_amount"]
[1762788022685,0.00509496,105200.0,105190.0,0.19018223]
[1762788023384,0.00509496,105200.0,105190.0,0.42782223]
[1762788023586,0.09817546,105200.0,105190.0,0.43182223]
[1762788023787,0.00309496,105200.0,105190.0,0.19418223]
[1762788024089,0.31468665,105240.0,105230.0,0.04408]
[1762788024277,0.14260703,105240.0,105230.0,0.04408]
[1762788024483,0.31688468,105240.0,105230.0,0.04408]
[1762788024976,0.31688468,105240.0,105230.0,0.02265]
[1762788025179,0.31688468,105240.0,105220.0,0.00014246]
[1762788025180,0.1404134,105230.0,105220.0,0.00014246]
[1762788025492,0.31688908,105230.0,105220.0,0.00014246]
[1762788025987,0.31688908,105230.0,105200.0,0.04659824]
[1762788025988,0.1404315,105210.0,105200.0,0.04659824]
[1762788026186,0.1404315,105210.0,105200.0,0.03528]
[1762788026187,0.31690718,105210.0,105200.0,0.03528]
[1762788026388,0.31690718,105210.0,105200.0,0.1517905]
[1762788026785,0.31690718,105210.0,105200.0,0.05671]
[1762788027383,0.09726953,105210.0,105200.0,0.1517905]
[1762788027582,0.09726953,105210.0,105200.0,0.18575874]
[1762788027884,0.14262953,105210.0,105200.0,0.18775874]
[1762788028087,0.14262953,105210.0,105200.0,0.05871]
[1762788028291,0.02491803,105210.0,105200.0,0.1537905]
[1762788028593,0.31690718,105210.0,105200.0,0.09367824]
[1762788028890,0.31690718,105210.0,105200.0,0.1547905]
[1762788029291,0.31690718,105210.0,105200.0,0.003]
[1762788029792,0.1492905,105200.0,105190.0,0.00014246]
[1762788030092,0.32576618,105200.0,105190.0,0.00014246]
[1762788031181,0.32576618,105200.0,105190.0,0.00114246]
[1762788032091,0.31691618,105200.0,105190.0,0.00114246]
[1762788032392,0.31691618,105200.0,105190.0,0.04522246]
[1762788032787,0.31691618,105200.0,105190.0,0.00114246]
[1762788033183,0.1404586,105180.0,105170.0,0.03396824]
[1762788033385,0.1404676,105170.0,105160.0,0.08492061]
[1762788033592,0.22183568,105170.0,105160.0,0.18579494]
[1762788034091,0.00219803,105170.0,105160.0,0.18579494]
[1762788034491,0.00219803,105170.0,105160.0,0.1518267]
[1762788034696,0.17442011,105180.0,105170.0,0.1391876]
[1762788034697,0.00014246,105180.0,105170.0,0.1391876]
[1762788034894,0.00014246,105180.0,105170.0,0.22413492]
[1762788035395,0.00014246,105180.0,105170.0,0.19013997]
[1762788035595,0.00014246,105180.0,105170.0,0.20738174]
[1762788035796,0.00014246,105180.0,105170.0,0.1391876]
[1762788035999,0.12015909,105180.0,105170.0,0.1391876]
[1762788036193,0.29443674,105180.0,105170.0,0.19021677]
[1762788036398,0.00234049,105180.0,105170.0,0.19021677]
[1762788036595,0.00014246,105180.0,105170.0,0.19021677]
[1762788036996,0.00234049,105180.0,105170.0,0.19021677]
[1762788037189,0.140413,105240.0,105230.0,0.04408]
[1762788037389,0.00073267,105240.0,105230.0,0.14133143]
[1762788037597,0.02272,105250.0,105240.0,0.1517463]
[1762788037788,0.31539672,105260.0,105250.0,0.1391153]
[1762788037993,0.31539672,105260.0,105250.0,0.17533394]
[1762788038199,0.04609267,105260.0,105250.0,0.17533394]
[1762788038398,0.00014246,105270.0,105260.0,0.05671]
[1762788038698,0.00087513,105270.0,105260.0,0.20496686]
[1762788038902,0.00014246,105270.0,105260.0,0.20496686]
[1762788039397,0.09589243,105270.0,105260.0,0.20496686]
[1762788039603,0.27017008,105270.0,105260.0,0.10994056]
[1762788039899,0.09589243,105270.0,105260.0,0.20496686]
[1762788040101,0.17515278,105270.0,105260.0,0.20496686]
[1762788040298,0.00214246,105270.0,105260.0,0.20496686]
[1762788040498,0.00214246,105270.0,105260.0,0.44244686]
[1762788040702,0.0950031,105290.0,105280.0,0.05671]
[1762788040904,0.09573577,105290.0,105280.0,0.09283904]
[1762788041203,0.09573577,105290.0,105280.0,0.18784734]
[1762788041398,0.09573187,105290.0,105280.0,0.15391633]
[1762788042002,0.29272952,105290.0,105280.0,0.05890803]
[1762788042298,0.17501032,105290.0,105280.0,0.15391633]
[1762788042602,0.09573187,105290.0,105280.0,0.18784734]
[1762788042792,0.27000952,105290.0,105280.0,0.18784734]
[1762788042992,0.27300952,105290.0,105280.0,0.09283904]
[1762788043192,0.27800952,105290.0,105280.0,0.09383904]
[1762788043393,0.27800952,105290.0,105280.0,0.18884724]
[1762788043697,0.005,105290.0,105280.0,0.18884724]
[1762788043997,0.00673267,105290.0,105280.0,0.18884724]
[1762788044394,0.00673267,105290.0,105280.0,0.15491623]
[1762788044706,0.10173187,105290.0,105280.0,0.18884724]
[1762788044897,0.00673267,105290.0,105280.0,0.18884724]
[1762788045993,0.005,105290.0,105280.0,0.18884724]
[1762788046302,0.26926315,105310.0,105300.0,0.1517002]
[1762788046303,0.0949855,105310.0,105300.0,0.1517002]
[1762788046509,0.0949723,105320.0,105310.0,0.04408]
[1762788046799,0.04536,105300.0,105290.0,0.085106]
[1762788047006,0.32581588,105300.0,105290.0,0.03258148]
[1762788047191,0.1177282,105280.0,105270.0,0.04408]
[1762788047391,0.19919568,105280.0,105270.0,0.04408]
[1762788047599,0.1403545,105300.0,105290.0,0.04408]
[1762788047798,0.09719253,105300.0,105290.0,0.04408]
[1762788048599,0.09719253,105300.0,105290.0,0.1390792]
[1762788048799,0.09512856,105310.0,105300.0,0.1517002]
[1762788049000,0.09732659,105310.0,105300.0,0.1517002]
[1762788049206,0.09732659,105310.0,105300.0,0.05671]
[1762788049600,0.00234049,105310.0,105300.0,0.1517002]
[1762788049997,0.09732169,105310.0,105300.0,0.1517002]
[1762788050200,0.00234049,105310.0,105300.0,0.1517002]
[1762788050405,0.00314246,105310.0,105300.0,0.1517002]
[1762788052202,0.09812366,105310.0,105300.0,0.1517002]
[1762788052409,0.10032169,105310.0,105300.0,0.1517002]
[1762788052896,0.00534049,105310.0,105300.0,0.1517002]
[1762788053095,0.10032169,105310.0,105300.0,0.1517002]
[1762788053808,0.31954934,105310.0,105300.0,0.05671]
[1762788054106,0.00314246,105310.0,105300.0,0.1517002]
[1762788054511,0.094964,105330.0,105320.0,0.01288]
[1762788054711,0.14049239,105350.0,105340.0,0.05821]
[1762788054901,0.31696807,105350.0,105340.0,0.05821]
[1762788055504,0.14269042,105350.0,105340.0,0.1531641]
[1762788055710,0.27165807,105350.0,105340.0,0.1531641]
[1762788056308,0.31696807,105350.0,105340.0,0.1531642]
[1762788056509,0.31696807,105350.0,105340.0,0.04533]
[1762788056707,0.31696807,105350.0,105340.0,0.1531642]
[1762788056911,0.26105162,105350.0,105340.0,0.1531642]
[1762788057211,0.26105162,105350.0,105340.0,0.05821]
[1762788057412,0.26105162,105350.0,105340.0,0.16265775]
[1762788057712,0.21774162,105350.0,105340.0,0.16265775]
[1762788058313,0.26305162,105350.0,105340.0,0.16265775]
[1762788059109,0.14469042,105350.0,105340.0,0.16265775]
[1762788059315,0.26305162,105350.0,105340.0,0.16265775]
[1762788060412,0.14469042,105350.0,105340.0,0.16265775]
[1762788060610,0.00223729,105350.0,105340.0,0.16265775]
[1762788061611,0.256955,105380.0,105370.0,0.04609]
[1762788061810,0.1385971,105370.0,105360.0,0.03621]
[1762788062011,0.04367,105360.0,105350.0,0.1410282]
[1762788062207,0.02192,105360.0,105350.0,0.1410282]
[1762788062422,0.25916343,105370.0,105360.0,0.1540562]
[1762788062811,0.25916343,105370.0,105360.0,0.05912]
[1762788063012,0.0949452,105350.0,105340.0,0.16355361]
[1762788063212,0.21550443,105350.0,105340.0,0.16355361]
[1762788063512,0.12155923,105350.0,105340.0,0.16355361]
[1762788063816,0.001,105350.0,105340.0,0.16355361]
[1762788064020,0.001,105350.0,105340.0,0.40087361]
[1762788064321,0.2132974,105360.0,105350.0,0.1410352]
[1762788064815,0.1386152,105350.0,105340.0,0.16455601]
[1762788065013,0.00219803,105350.0,105340.0,0.16455601]
[1762788065216,0.1183612,105360.0,105350.0,0.1410352]
[1762788065421,0.00219803,105360.0,105350.0,0.1410352]
[1762788066118,0.1183612,105370.0,105360.0,0.1540562]
[1762788066119,0.2352083,105370.0,105360.0,0.1540562]
[1762788066321,0.23740633,105370.0,105360.0,0.1540562]
[1762788066621,0.25915633,105370.0,105360.0,0.1540562]
[1762788067024,0.25915633,105370.0,105360.0,0.05912]
[1762788067715,0.1386062,105360.0,105350.0,0.04609]
[1762788067915,0.25916543,105360.0,105350.0,0.1410352]
[1762788069420,0.1386152,105350.0,105340.0,0.09645854]
[1762788069612,0.25917443,105350.0,105340.0,0.03593246]
[1762788070121,0.04586803,105350.0,105340.0,0.15406666]
[1762788070310,0.14081323,105350.0,105340.0,0.05911246]
[1762788070507,0.25917443,105350.0,105340.0,0.00114246]
[1762788071116,0.25917443,105350.0,105340.0,0.00214246]
[1762788071310,0.25917443,105350.0,105340.0,0.15621666]
[1762788071720,0.25917443,105350.0,105340.0,0.06126246]
[1762788072121,0.16422923,105350.0,105340.0,0.15621666]
[1762788072316,0.25917443,105350.0,105340.0,0.15521666]
[1762788072512,0.25917443,105350.0,105340.0,0.15621666]
[1762788072917,0.14081323,105350.0,105340.0,0.15621666]
[1762788073122,0.16422923,105350.0,105340.0,0.15621666]
[1762788073417,0.25917443,105350.0,105340.0,0.00214246]
[1762788073822,0.25917443,105350.0,105340.0,0.09709666]
[1762788074012,0.25917443,105350.0,105340.0,0.00214246]
[1762788074419,0.25917443,105350.0,105340.0,0.15621666]
[1762788074722,0.16422923,105350.0,105340.0,0.15621666]
[1762788075120,0.1168561,105360.0,105350.0,0.1410283]
[1762788075316,0.02411803,105360.0,105350.0,0.19206083]
[1762788075525,0.1385943,105380.0,105370.0,0.04609]
[1762788075823,0.25915353,105380.0,105370.0,0.1178371]
[1762788076216,0.25915353,105380.0,105370.0,0.1410171]
[1762788076410,0.14079233,105380.0,105370.0,0.1410171]
[1762788076611,0.1385971,105370.0,105360.0,0.05108568]
[1762788076824,0.25915633,105370.0,105360.0,0.16893178]
[1762788077121,0.25915633,105370.0,105360.0,0.05108568]
[1762788077323,0.25915633,105370.0,105360.0,0.00014246]
[1762788077725,0.23636006,105370.0,105360.0,0.00014246]
[1762788078115,0.35472126,105370.0,105360.0,0.00014246]
[1762788078317,0.35472126,105370.0,105340.0,0.06397322]
[1762788078318,0.1386152,105350.0,105340.0,0.05094322]
[1762788078522,0.25917443,105350.0,105340.0,0.05094322]
[1762788079018,0.14081313,105350.0,105340.0,0.20291742]
[1762788079225,0.16422923,105350.0,105340.0,0.20291742]
[1762788079626,0.25917433,105350.0,105340.0,0.05094322]
[1762788080124,0.25917433,105350.0,105340.0,0.001]
[1762788080325,0.25917433,105350.0,105340.0,0.14689742]
[1762788080525,0.25917433,105350.0,105340.0,0.05194322]
[1762788080932,0.25917433,105350.0,105340.0,0.05294322]
[1762788081120,0.14081313,105350.0,105340.0,0.05294322]
[1762788081324,0.1396413,105310.0,105300.0,0.06819414]
[1762788081525,0.1396503,105300.0,105290.0,0.04254]
[1762788081717,0.26020953,105300.0,105290.0,0.04254]
[1762788082525,0.1396593,105290.0,105280.0,0.05571246]
[1762788082718,0.26021853,105290.0,105280.0,0.05571246]
[1762788083121,0.37857973,105290.0,105280.0,0.00014246]
[1762788083325,0.1396773,105270.0,105260.0,9.083e-05]
[1762788083526,0.26023653,105270.0,105260.0,9.083e-05]
[1762788083827,0.14307923,105270.0,105260.0,0.15053723]
[1762788084019,0.21557653,105270.0,105260.0,0.15053723]
[1762788084219,0.12055923,105270.0,105260.0,0.15053723]
[1762788085135,0.00219803,105270.0,105260.0,0.15253723]
[1762788085335,0.12055923,105270.0,105260.0,0.15253723]
[1762788085530,0.11850366,105280.0,105270.0,0.1375573]
[1762788085733,0.094987,105310.0,105280.0,0.1078883]
[1762788085931,0.14183933,105310.0,105300.0,0.1504103]
[1762788086123,0.26020053,105310.0,105300.0,0.05542]
[1762788086633,0.1396503,105300.0,105290.0,0.1375345]
[1762788086834,0.26020953,105300.0,105290.0,0.1375345]
[1762788087128,0.26020953,105300.0,105290.0,0.04254]
[1762788087337,0.26020953,105300.0,105280.0,0.15057076]
[1762788087338,0.1396593,105290.0,105280.0,0.15057076]
[1762788087535,0.14185733,105290.0,105280.0,0.15057076]
[1762788087735,0.26021853,105290.0,105280.0,0.15057076]
[1762788087930,0.26021853,105290.0,105280.0,0.05556246]
[1762788088638,0.26021853,105290.0,105280.0,0.15057076]
[1762788088834,0.26021853,105290.0,105280.0,0.05756246]
[1762788089129,0.26021853,105290.0,105280.0,0.00214246]
[1762788089925,0.26021853,105290.0,105280.0,0.02345246]
[1762788090124,0.26021853,105290.0,105280.0,0.05756246]
[1762788090327,0.26021853,105290.0,105280.0,0.05956246]
[1762788090524,0.26021853,105290.0,105280.0,0.15457076]
[1762788090830,0.26021853,105290.0,105280.0,0.05756246]
[1762788091031,0.26021853,105290.0,105280.0,0.05856246]
[1762788091231,0.26021853,105290.0,105280.0,0.00314246]
[1762788091635,0.26021853,105290.0,105280.0,0.00114246]
[1762788091832,0.37857973,105290.0,105280.0,0.00114246]
[1762788092726,0.37857973,105290.0,105280.0,2.46e-06]
[1762788092934,0.1396774,105270.0,105260.0,9.083e-05]
[1762788093228,0.26023663,105270.0,105260.0,9.083e-05]
[1762788094131,0.26023663,105270.0,105260.0,0.09511723]
[1762788094334,0.14187543,105270.0,105260.0,0.05751083]
[1762788094632,0.26023663,105270.0,105260.0,0.05751083]
[1762788095237,0.26023663,105270.0,105260.0,0.15153723]
[1762788095435,0.26023663,105270.0,105260.0,0.05651083]
[1762788096235,0.26023663,105270.0,105260.0,0.15153723]
[1762788096435,0.26023663,105270.0,105260.0,0.05851083]
[1762788096734,0.14187543,105270.0,105260.0,0.15353723]
[1762788097031,0.26023663,105270.0,105260.0,0.15353723]
[1762788098638,0.26023663,105270.0,105260.0,0.15153723]
[1762788098951,0.26023663,105270.0,105260.0,0.15253723]
[1762788099433,0.26023663,105270.0,105260.0,0.05751083]
[1762788099643,0.26023663,105270.0,105260.0,0.05851083]
[1762788100439,0.26023663,105270.0,105260.0,0.15353723]
[1762788100836,0.26023663,105270.0,105260.0,0.05851083]
[1762788102140,0.26023663,105270.0,105260.0,0.15353723]
[1762788102642,0.26023663,105270.0,105260.0,0.05851083]
[1762788103245,0.26023663,105270.0,105260.0,0.15353723]
[1762788103642,0.26023663,105270.0,105260.0,0.05851083]
[1762788104235,0.26023663,105270.0,105260.0,0.15353723]
[1762788104641,0.26023663,105270.0,105260.0,0.05851083]
[1762788107338,0.26023663,105270.0,105260.0,0.02440083]
[1762788107544,0.26023663,105270.0,105260.0,0.05851083]
[1762788107745,0.04685803,105270.0,105260.0,0.15353703]
[1762788107938,0.09774529,105270.0,105260.0,0.20651235]
[1762788108139,0.00014246,105280.0,105270.0,0.1375572]
[1762788108347,0.1630212,105300.0,105290.0,0.1375391]
[1762788108550,0.1630212,105300.0,105290.0,0.13973713]
[1762788108551,0.14161387,105300.0,105290.0,0.13973713]
[1762788108753,0.2358624,105310.0,105300.0,0.03411]
[1762788108954,0.1183612,105310.0,105300.0,0.15260813]
[1762788109151,0.2588569,105320.0,105310.0,0.04617]
[1762788109342,0.21406597,105320.0,105310.0,0.09914532]
[1762788109648,0.21346676,105330.0,105320.0,0.0598]
[1762788109853,0.11923633,105330.0,105320.0,0.20774742]
[1762788110055,0.21419943,105330.0,105320.0,0.20774742]
[1762788110253,0.11923633,105330.0,105320.0,0.20774742]
[1762788110454,0.21419943,105330.0,105320.0,0.20774742]
[1762788110654,0.11923633,105330.0,105320.0,0.20774742]
[1762788111151,0.14248633,105330.0,105320.0,0.20774742]
[1762788111455,0.23744943,105330.0,105320.0,0.11277532]
[1762788111646,0.23744943,105330.0,105320.0,0.11377532]
[1762788112256,0.23744943,105330.0,105320.0,0.11577532]
[1762788112755,0.00087513,105330.0,105320.0,0.21074742]
[1762788113057,0.00014246,105330.0,105320.0,0.21074742]
[1762788113253,0.14135823,105330.0,105320.0,0.11577532]
[1762788113459,0.09583823,105330.0,105320.0,0.11577532]
[1762788114357,0.00014246,105330.0,105320.0,0.21074742]
[1762788115253,0.11850366,105330.0,105320.0,0.21074742]
[1762788115457,0.00014246,105330.0,105320.0,0.44810742]
[1762788115858,0.00014246,105330.0,105320.0,0.21074742]
[1762788116054,0.14113823,105330.0,105320.0,0.11577532]
[1762788116257,0.25949943,105330.0,105320.0,0.11577532]
[1762788116456,0.25949943,105330.0,105320.0,0.06499803]
[1762788117760,0.25949943,105330.0,105320.0,0.00519803]
[1762788118062,0.14113823,105330.0,105320.0,0.06347803]
[1762788118357,0.25949943,105330.0,105320.0,0.06347803]
[1762788118558,0.25949943,105330.0,105320.0,0.06247803]
[1762788118761,0.25949943,105330.0,105320.0,0.00419803]
[1762788118957,0.3148655,105330.0,105320.0,0.00419803]
[1762788119656,0.3148655,105330.0,105320.0,0.00219803]
[1762788119859,0.3148655,105330.0,105320.0,0.00319803]
[1762788120253,0.1397621,105320.0,105310.0,0.00014246]
[1762788120457,0.31422204,105320.0,105310.0,0.00234049]
[1762788120948,0.1397892,105290.0,105280.0,0.10915729]
[1762788121155,0.31424914,105290.0,105280.0,0.11135532]
[1762788121550,0.31424914,105290.0,105280.0,0.06057803]
[1762788122162,0.31424914,105290.0,105280.0,0.00219803]
[1762788123549,0.1506482,105280.0,105270.0,0.00014246]
[1762788123765,0.32510814,105280.0,105270.0,0.00234049]
[1762788124866,0.1398072,105270.0,105260.0,9.083e-05]
[1762788125068,0.1398072,105270.0,105260.0,0.00228886]
[1762788125069,0.31426714,105270.0,105260.0,0.00228886]
[1762788126666,0.31426714,105270.0,105260.0,0.02496886]
[1762788126860,0.21924994,105270.0,105260.0,0.06056886]
[1762788127065,0.31426714,105270.0,105260.0,0.06056886]
[1762788127368,0.31426714,105270.0,105260.0,0.00228886]
[1762788127764,0.31426714,105270.0,105260.0,0.06056886]
[1762788129267,0.00073267,105270.0,105260.0,0.15559506]
[1762788129460,0.09574987,105270.0,105260.0,0.06056886]
[1762788129670,0.31426714,105270.0,105260.0,0.02496886]
[1762788129966,0.00014246,105280.0,105270.0,0.1405172]
[1762788130158,0.00087513,105280.0,105270.0,0.14271523]
[1762788130665,0.00087513,105280.0,105270.0,0.19349252]
[1762788130870,0.00014246,105280.0,105270.0,0.19349252]
[1762788131063,0.3154006,105280.0,105270.0,0.09847532]
[1762788131376,0.00114246,105280.0,105270.0,0.19349252]
[1762788131670,0.0949956,105300.0,105270.0,0.19349252]
[1762788131671,0.31351057,105300.0,105290.0,0.02268]
[1762788131859,0.14052187,105290.0,105280.0,0.05828]
[1762788132059,0.14052187,105290.0,105280.0,0.15548623]
[1762788132466,0.31424914,105290.0,105280.0,0.15548623]
[1762788132666,0.14052187,105290.0,105280.0,0.15548623]
[1762788132868,0.14052187,105290.0,105280.0,0.06047803]
[1762788133260,0.31424914,105290.0,105280.0,0.06047803]
[1762788133964,0.31424914,105290.0,105280.0,0.00219803]
[1762788134169,0.31424914,105290.0,105280.0,0.00419803]
[1762788134975,0.31424914,105290.0,105280.0,0.02687803]
[1762788135377,0.31424914,105290.0,105280.0,0.02487803]
[1762788135581,0.31424914,105290.0,105280.0,0.02587803]
[1762788135874,0.31424914,105290.0,105280.0,0.06147803]
[1762788136271,0.21924994,105290.0,105280.0,0.15648623]
[1762788136578,0.31424914,105290.0,105280.0,0.06147803]
[1762788137173,0.31424914,105290.0,105280.0,0.04869803]
[1762788137380,0.31424914,105290.0,105280.0,0.00319803]
[1762788137780,0.31424914,105290.0,105280.0,0.001]
[1762788138578,0.1397982,105280.0,105270.0,0.00014246]
[1762788138778,0.1397982,105280.0,105270.0,0.00234049]
[1762788138779,0.31425814,105280.0,105270.0,0.00234049]
[1762788138980,0.31425814,105280.0,105270.0,0.00014246]
[1762788140269,0.1387272,105270.0,105260.0,9.083e-05]
[1762788140471,0.31318714,105270.0,105260.0,9.083e-05]
[1762788140677,0.31318714,105270.0,105260.0,8.3e-07]
[1762788140877,0.1387453,105250.0,105240.0,0.05077729]
[1762788141082,0.1387543,105240.0,105230.0,0.09567644]
[1762788141272,0.31321424,105240.0,105230.0,0.10748336]
[1762788141482,0.31321424,105240.0,105230.0,0.05654692]
[1762788141880,0.31332907,105240.0,105230.0,0.05654692]
[1762788142589,0.31332907,105240.0,105230.0,0.05954692]
[1762788142776,0.0445575,105240.0,105230.0,0.05954692]
[1762788142976,0.00011483,105240.0,105230.0,0.20553666]
[1762788143383,0.00011483,105240.0,105230.0,0.99216022]
[1762788143586,0.00014246,105250.0,105240.0,0.1535043]
[1762788143788,0.00014246,105250.0,105240.0,0.22359298]
[1762788144082,0.00014246,105250.0,105240.0,0.46115298]
[1762788144283,0.0950181,105270.0,105260.0,0.05846]
[1762788144485,0.09575077,105270.0,105260.0,0.06065803]
[1762788144679,0.00073267,105270.0,105260.0,0.15568423]
[1762788144985,0.17372727,105280.0,105270.0,0.0950172]
[1762788145182,0.31244357,105290.0,105280.0,0.05846]
[1762788145381,0.31317624,105290.0,105280.0,0.11159789]
[1762788146488,0.31417624,105290.0,105280.0,0.11159789]
[1762788147781,0.21916994,105290.0,105280.0,0.20660609]
[1762788147986,0.00073267,105290.0,105280.0,0.20960609]
[1762788148493,0.13944177,105290.0,105280.0,0.11472152]
[1762788148787,0.31316904,105290.0,105280.0,0.07774152]
[1762788148988,0.31316904,105290.0,105280.0,0.07674152]
[1762788149189,0.31316904,105290.0,105280.0,0.05726152]
[1762788149985,0.31316904,105290.0,105280.0,0.05526152]
[1762788150292,0.31316904,105290.0,105280.0,0.005]
[1762788150886,0.31316904,105290.0,105280.0,0.003]
[1762788151091,0.1387182,105280.0,105270.0,0.05120595]
[1762788151286,0.31317814,105280.0,105270.0,0.00014246]
[1762788151591,0.31317814,105280.0,105270.0,0.05340398]
[1762788153386,0.31317814,105280.0,105270.0,0.05120595]
[1762788153583,0.31317814,105280.0,105270.0,0.00014246]
[1762788154779,0.31517814,105280.0,105270.0,0.00234049]
[1762788154981,0.31517814,105280.0,105270.0,0.19316118]
[1762788154982,0.00273267,105280.0,105270.0,0.19316118]
[1762788155290,0.34091553,105300.0,105290.0,0.04474]
[1762788155489,0.3416482,105300.0,105290.0,0.07478598]
[1762788155694,0.3416482,105300.0,105290.0,0.00219803]
[1762788155887,0.3416482,105300.0,105290.0,0.04693803]
[1762788156086,0.3416482,105300.0,105290.0,0.02367803]
[1762788156685,0.16792093,105300.0,105290.0,0.04893803]
[1762788156989,0.3416482,105300.0,105290.0,0.05530598]
[1762788157490,0.3416482,105300.0,105290.0,0.05330598]
[1762788157691,0.3416482,105300.0,105290.0,0.05530598]
[1762788157894,0.16792093,105300.0,105290.0,0.04993803]
[1762788158100,0.3416482,105300.0,105290.0,0.04993803]
[1762788158395,0.3416482,105300.0,105290.0,0.10104598]
[1762788158896,0.3416482,105300.0,105290.0,0.10004598]
[1762788159090,0.05177513,105300.0,105290.0,0.19504508]
[1762788159285,0.02935513,105300.0,105290.0,0.14393713]
[1762788159495,0.02862246,105300.0,105290.0,0.14393713]
[1762788159695,0.02862246,105300.0,105290.0,0.14493713]
[1762788159890,0.02862246,105300.0,105290.0,0.21282778]
[1762788160285,0.12361256,105300.0,105290.0,0.14493713]
[1762788160803,0.3416425,105300.0,105290.0,0.05627517]
[1762788161300,0.3521225,105300.0,105290.0,0.05627517]
[1762788161700,0.3521225,105300.0,105290.0,0.00519803]
[1762788162498,0.3531225,105300.0,105290.0,0.00419803]
[1762788162700,0.1385691,105290.0,105280.0,0.05107714]
[1762788162999,0.31302904,105290.0,105280.0,0.05107714]
[1762788163200,0.1385782,105280.0,105270.0,0.05123298]
[1762788163403,0.31303814,105280.0,105270.0,0.05343101]
[1762788163904,0.31303814,105280.0,105270.0,0.19318821]
[1762788164196,0.31303814,105280.0,105270.0,0.09817101]
[1762788165103,0.31303814,105280.0,105270.0,0.05343101]
[1762788166204,0.31303814,105280.0,105270.0,0.09817101]
[1762788167303,0.19687994,105280.0,105270.0,0.19318821]
[1762788167500,0.00073267,105280.0,105270.0,0.14209769]
[1762788168199,0.26946814,105280.0,105270.0,0.20998834]
[1762788168399,0.17445994,105280.0,105270.0,0.14209769]
[1762788168601,0.26873237,105290.0,105280.0,0.1534682]
[1762788168798,0.31303504,105290.0,105280.0,0.06065803]
[1762788168997,0.31303504,105290.0,105280.0,0.11174108]
[1762788169402,0.31303504,105290.0,105280.0,0.20674928]
[1762788169706,0.31303504,105290.0,105280.0,0.20674887]
[1762788170004,0.31303504,105290.0,105280.0,0.15566623]
[1762788170507,0.31303504,105290.0,105280.0,0.06065803]
[1762788170709,0.31303504,105290.0,105280.0,0.11174386]
[1762788171205,0.31303504,105290.0,105280.0,0.15766623]
[1762788171409,0.29188504,105290.0,105280.0,0.15766623]
[1762788171709,0.31430504,105290.0,105280.0,0.15766623]
[1762788172108,0.31430504,105290.0,105280.0,0.06265803]
[1762788172311,0.31430504,105290.0,105280.0,0.06365803]
[1762788172803,0.31430504,105290.0,105280.0,0.05433466]
[1762788173007,0.31430504,105290.0,105280.0,0.05633466]
[1762788173508,0.1395672,105270.0,105260.0,0.00445786]
[1762788173812,0.1395762,105260.0,105250.0,0.1396752]
[1762788174001,0.3155015,105260.0,105250.0,0.1396752]
[1762788174307,0.3155015,105260.0,105250.0,0.04464]
[1762788175306,0.3155015,105260.0,105250.0,0.1396752]
[1762788175504,0.3155015,105260.0,105250.0,0.04464]
[1762788175810,0.3440015,105260.0,105250.0,0.02331]
[1762788176010,0.2994515,105260.0,105250.0,0.1404852]
[1762788176509,0.2994515,105260.0,105250.0,0.04545]
[1762788176510,0.3438915,105260.0,105250.0,0.04545]
[1762788176714,0.2488653,105260.0,105250.0,0.1404852]
[1762788176903,0.03069803,105260.0,105250.0,0.1404852]
[1762788177104,0.03069803,105260.0,105250.0,0.1414852]
[1762788177805,0.0285,105260.0,105250.0,0.82622941]
[1762788178007,0.2044253,105260.0,105250.0,0.46374941]
[1762788178203,0.2044253,105260.0,105250.0,0.22822941]
[1762788178403,0.00014246,105270.0,105260.0,0.1518762]
[1762788178598,0.00234049,105270.0,105260.0,0.1518762]
[1762788179004,0.21589126,105270.0,105260.0,0.1518762]
[1762788179212,0.1396765,105300.0,105290.0,0.1383992]
[1762788179510,0.2604081,105300.0,105290.0,0.1383992]
[1762788180207,0.32178157,105320.0,105290.0,0.2333984]
[1762788180208,0.00014246,105310.0,105290.0,0.2333984]
[1762788180414,9.09e-06,105310.0,105300.0,0.1084402]
[1762788180610,9.09e-06,105310.0,105300.0,0.23658441]
[1762788180611,0.09718822,105310.0,105300.0,0.23658441]
[1762788180816,0.21572179,105310.0,105300.0,0.23658441]
[1762788181215,0.0949368,105360.0,105350.0,0.02126]
[1762788181514,0.00219803,105360.0,105350.0,0.0434]
[1762788181720,0.00219803,105360.0,105350.0,0.1383451]
[1762788182015,0.11853357,105370.0,105360.0,0.1517861]
[1762788182207,0.1207316,105370.0,105360.0,0.1517861]
[1762788182812,0.00219803,105370.0,105360.0,0.1517861]
[1762788183012,0.1207316,105370.0,105360.0,0.1517861]
[1762788183215,0.00219803,105370.0,105360.0,0.1517861]
[1762788183511,0.00219803,105370.0,105360.0,0.3890661]
[1762788183910,0.00519803,105370.0,105360.0,0.3890661]
[1762788184217,0.003,105370.0,105360.0,0.99875988]
[1762788184515,0.00014246,105380.0,105370.0,0.138327]
[1762788184911,0.00014246,105380.0,105370.0,0.375567]
[1762788185217,0.00014246,105380.0,105370.0,0.138327]
[1762788185413,0.13981738,105400.0,105390.0,0.0434]
[1762788185603,0.0949131,105390.0,105370.0,0.0949268]
[1762788185915,0.1654116,105380.0,105370.0,0.1383268]
[1762788186908,0.2603296,105380.0,105370.0,0.0434]
[1762788187102,0.04468,105370.0,105360.0,0.05323624]
[1762788187302,0.2603386,105370.0,105360.0,0.05323624]
[1762788187509,0.2603386,105370.0,105360.0,0.00983624]
[1762788187820,0.2603386,105370.0,105360.0,0.05323624]
[1762788188418,0.14180503,105370.0,105360.0,0.05323624]
[1762788188619,0.2603386,105370.0,105360.0,0.05323624]
[1762788188920,0.2603386,105370.0,105360.0,0.06768624]
[1762788189120,0.2603386,105370.0,105360.0,0.16262234]
[1762788189324,0.2603386,105370.0,105360.0,0.06768624]
[1762788189620,0.2603386,105370.0,105360.0,0.06968624]
[1762788190209,0.2603386,105370.0,105360.0,0.05623624]
[1762788190412,0.2603386,105370.0,105360.0,0.06968624]
[1762788190906,0.2603386,105370.0,105360.0,0.00314246]
[1762788191714,0.2603386,105370.0,105360.0,0.02440246]
[1762788192119,0.1654116,105370.0,105360.0,0.14147856]
[1762788192421,0.25826503,105390.0,105380.0,0.151768]
[1762788192609,0.26046306,105390.0,105380.0,0.05685]
[1762788193212,0.26046306,105390.0,105380.0,0.0434]
[1762788193711,0.04468,105380.0,105370.0,0.0434]
[1762788193916,0.2603296,105380.0,105370.0,0.0434]
[1762788194112,0.1654116,105380.0,105370.0,0.1383271]
[1762788194307,0.2603296,105380.0,105370.0,0.1383271]
[1762788195419,0.00219803,105380.0,105370.0,0.1383271]
[1762788195619,0.1207316,105380.0,105370.0,0.1383271]
[1762788195821,0.1207316,105380.0,105370.0,0.1393271]
[1762788196621,0.2156496,105380.0,105370.0,0.1393271]
[1762788196819,0.1207316,105380.0,105370.0,0.1393271]
[1762788197124,0.00219803,105380.0,105370.0,0.3765671]
[1762788197325,0.09711603,105380.0,105370.0,0.3765671]
[1762788197630,0.00219803,105380.0,105370.0,0.3765671]
[1762788197818,0.00219803,105380.0,105370.0,0.1393271]
[1762788198014,0.2156496,105380.0,105370.0,0.1393271]
[1762788198214,0.11867603,105390.0,105380.0,0.151768]